[Event "8th Montevideo Open 2025"]
[Site "Montevideo"]
[Date "2025.02.08"]
[Round "8.1"]
[White "Larrea, Manuel"]
[Black "Coro, Lucas"]
[Result "0-1"]
[Annotator "TA"]
[ECO "B35"]
[WhiteElo "2265"]
[BlackElo "2415"]
[PlyCount "66"]
[EventDate "2025.02.01"]
[EventType "swiss"]
[EventCountry "URU"]
[SourceTitle "playchess.com"]
[Source "ChessBase"]
[SourceQuality "1"]
[TimeControl "5400+30"]

{[%evp 15,66,37,44,12,54,22,39,33,29,27,43,27,35,16,21,9,0,6,15,12,26,0,42,18,26,7,23,-8,-16,-19,-16,-89,-21,-83,-108,-117,-87,-134,-140,-135,-141,-150,-150,-255,-251,-249,-229,-260,-264,-29987,-29988,-29988,-29986]} 1. e4 {[%emt 0:05:40]} c5 {[%emt 0:00:29]} 2. Nf3 {[%emt 0:00:45]} Nc6 {[%emt 0:00:45]} 3. d4 {[%emt 0:00:15]} cxd4 {[%emt 0:00:09]} 4. Nxd4 {[%emt 0:00:05]} g6 {[%emt 0:00:43]} 5. Nc3 {[%emt 0:01:38]} Bg7 {[%emt 0:00:10]} 6. Be3 {[%emt 0:00:04]} Nf6 {[%emt 0:00:32]} 7. Bc4 {[%emt 0:01:16]} Qa5 {[%emt 0:00:33]} 8. O-O {[%emt 0:01:38]} O-O {[%emt 0:00:09]} 9. Re1 {[%emt 0:02:28] B35: Sicilian: Accelerated Dragon with 5 Nc3: main line.} d6 {[%emt 0:00:22]} (9... Ng4 $5) 10. Nd5 {[%emt 0:02:02]} Re8 {[%emt 0:07:59]} 11. Nxf6+ $146 {[%emt 0:04:39] White is slightly better.} (11. Nb3 Qd8 12. f3 e6 13. Nxf6+ Bxf6 14. c3 Qc7 15. Qd2 Rd8 16. Qf2 Ne5 17. Bf1 {1-0 Giaccio,A (2470)-Aguila,G (2281) Chesspangenberg op 1st 2003 (6)}) 11... Bxf6 {[%emt 0:00:06]} 12. c3 {[%emt 0:00:22]} Qc7 {[%emt 0:11:28] Hoping for ...Nxd4.} 13. Nc2 {[%emt 0:07:18]} b6 {[%emt 0:06:38]} 14. Bh6 {[%emt 0:15:42]} Ne5 {[%emt 0:07:02]} 15. Bd5 {[%emt 0:04:02]} Rb8 {[%emt 0:04:40]} 16. Ne3 {[%emt 0:04:54]} e6 {[%emt 0:02:47]} 17. Bb3 {[%emt 0:02:35]} Ba6 {[%emt 0:01:49]} 18. Ng4 {[%emt 0:07:15]} Bh8 {[%emt 0:05:02]} 19. Nxe5 {[%emt 0:11:19]} Bxe5 {[%emt 0:00:07]} 20. f4 {[%emt 0:01:33]} Bh8 {[%emt 0:02:01]} 21. Qg4 {[%emt 0:02:23]} Qc5+ {[%emt 0:15:34]} 22. Kh1 {[%emt 0:00:10]} Qf2 {[%emt 0:00:07]} 23. h4 {[%emt 0:05:38]} (23. Rab1 $11 {remains equal.}) 23... d5 {[%emt 0:00:19] Black is more active.} ({Black should try} 23... Qxb2 $17 24. f5 exf5 (24... Qxc3 25. fxe6 f5 26. exf5 $18) 25. exf5 Qxc3 26. Bxf7+ Kxf7 27. fxg6+ Kg8 28. gxh7+ Kxh7 29. Qf5+ Kxh6 30. Qg5+ Kh7 31. Qh5+ Kg7 32. Qg5+ Kf7 33. Qd5+ Kf8 34. Qxd6+ Kg7 35. Re7+ Rxe7 36. Qxe7+ Kg6) 24. exd5 {[%emt 0:06:10]} (24. h5 $1 $11) 24... exd5 $17 {[%emt 0:02:30]} (24... Qxb2 25. h5 (25. dxe6 f5 $18) 25... Bb7 (25... exd5 26. Bxd5 Rxe1+ 27. Rxe1 $18) 26. hxg6 $18 (26. dxe6 f5 $18)) 25. Rxe8+ {[%emt 0:00:27]} Rxe8 {[%emt 0:00:06]} 26. Bxd5 {[%emt 0:00:22] [#]} (26. Kh2 $142) 26... Bc8 $1 {[%emt 0:02:58]} (26... Qxb2 27. Qd7 Qxa1+ 28. Kh2) 27. Qg5 {[%emt 0:00:48] Counterplay Black} Qxb2 {[%emt 0:00:15]} 28. Rf1 {[%emt 0:01:51] And now Bc6 would win.} Bf5 {[%emt 0:02:28]} ({Worse is} 28... Qxc3 29. f5 Bxf5 (29... Qd3 30. Bxf7+ Kxf7 31. fxg6+ Ke6 32. Re1+ Kd7 33. Rxe8 $18) 30. Rxf5 Re1+ 31. Kh2 Be5+ 32. Rf4 $16 (32. g3 Bxg3+ 33. Qxg3 Qxg3+ 34. Kxg3 gxf5 $15)) 29. c4 {[%emt 0:03:11]} (29. Kh2 $17 Qxc3 (29... Bxc3 30. Qg3 $17) 30. Bf3) 29... Bf6 $19 {[%emt 0:03:13]} ({Don't take} 29... Qxa2 30. Rd1 Qb2 31. Qg3 $19) 30. Qg3 {[%emt 0:00:25]} Qxa2 {[%emt 0:00:19]} 31. h5 {[%emt 0:02:16]} Qe2 {[%emt 0:00:52][%csl LRf1,LRh5]} 32. Rf3 {[%emt 0:01:10] [#]} (32. Qf3 $19) 32... Qd1+ {[%emt 0:00:05]} 33. Kh2 {[%emt 0:00:25]} Re1 {[%emt 0:00:13] Weighted Error Value: White=0.53/Black=0.11 (very precise)   Mistake:       	White=5     	Black=1      Inaccurate:     	White=3     	Black=2      OK:         	White=7     	Black=10     Best:        	White=1     	Black=1      Strong:       	---       	Black=1} 0-1

[Event "8th Montevideo Open 2025"]
[Site "Montevideo"]
[Date "2025.02.08"]
[Round "8.2"]
[White "Coppola, Claudio"]
[Black "Villegas, Franco"]
[Result "1-0"]
[Annotator "RC"]
[ECO "E05"]
[WhiteElo "2220"]
[BlackElo "2325"]
[PlyCount "61"]
[EventDate "2025.02.01"]
[EventType "swiss"]
[EventCountry "URU"]
[SourceTitle "playchess.com"]
[Source "ChessBase"]
[SourceQuality "1"]
[TimeControl "5400+30"]

1. d4 {[%emt 0:02:10]} Nf6 {[%emt 0:00:20]} 2. c4 {[%emt 0:00:06]} e6 {[%emt 0:00:09]} 3. g3 {[%emt 0:00:06]} d5 {[%emt 0:00:13]} 4. Bg2 {[%emt 0:00:04]} Be7 {[%emt 0:00:16]} 5. Nf3 {[%emt 0:00:04]} O-O {[%emt 0:00:22]} 6. O-O {[%emt 0:00:05]} dxc4 {[%emt 0:00:20]} 7. Ne5 {[%emt 0:00:08]} Nc6 {[%emt 0:09:05]} 8. Bxc6 {[%emt 0:00:05]} bxc6 {[%emt 0:00:03]} 9. Nxc6 {[%emt 0:00:07]} Qe8 {[%emt 0:00:04]} 10. Nxe7+ {[%emt 0:00:06]} Qxe7 {[%emt 0:00:04]} 11. Qc2 {[%emt 0:00:05]} e5 {[%emt 0:01:29]} 12. Rd1 {[%emt 0:02:29]} exd4 {[%emt 0:06:27]} 13. Rxd4 {[%emt 0:00:28]} c5 {[%emt 0:01:01]} 14. Rxc4 {[%emt 0:08:41]} Ba6 {[%emt 0:01:41]} 15. Rxc5 {[%emt 0:00:23]} Rac8 {[%emt 0:01:52]} 16. Rxc8 {[%emt 0:01:22]} Rxc8 {[%emt 0:00:44]} 17. Nc3 {[%emt 0:00:04]} Qc5 {[%emt 0:02:21]} 18. Qa4 {[%emt 0:10:45]} Bb7 {[%emt 0:00:03]} 19. Qb5 {[%emt 0:01:33]} Qc7 {[%emt 0:19:26]} 20. Bf4 {[%emt 0:01:51]} a6 {[%emt 0:00:04]} 21. Bxc7 {[%emt 0:04:34]} axb5 {[%emt 0:00:08]} 22. Nxb5 {[%emt 0:01:18]} Ba6 {[%emt 0:01:27]} 23. a4 {[%emt 0:00:17]} h6 {[%emt 0:00:46]} 24. Rc1 {[%emt 0:09:28]} Nd5 {[%emt 0:00:18]} 25. Bf4 {[%emt 0:11:49]} Re8 {[%emt 0:00:18]} 26. e3 {[%emt 0:03:21]} Re4 {[%emt 0:00:09]} 27. Nd4 {[%emt 0:02:16]} Nb4 {[%emt 0:00:44]} 28. Bd6 {[%emt 0:03:22]} Nd3 {[%emt 0:00:18]} 29. Rc6 {[%emt 0:01:59]} Bb7 {[%emt 0:00:04]} 30. Rb6 {[%emt 0:00:45]} Bd5 {[%emt 0:00:05]} 31. a5 {[%emt 0:00:32]} 1-0

[Event "8th Montevideo Open 2025"]
[Site "Montevideo"]
[Date "2025.02.08"]
[Round "8.3"]
[White "Vazquez, Facundo"]
[Black "Shoker, Samy"]
[Result "1-0"]
[Annotator "TA"]
[ECO "E60"]
[WhiteElo "2404"]
[BlackElo "2446"]
[PlyCount "83"]
[EventDate "2025.02.01"]
[EventType "swiss"]
[EventCountry "URU"]
[SourceTitle "playchess.com"]
[Source "ChessBase"]
[SourceQuality "1"]
[TimeControl "5400+30"]

{[%evp 15,83,27,25,2,48,27,47,50,105,125,98,120,131,133,115,128,128,129,127,128,134,143,136,131,145,143,139,136,163,154,307,315,327,335,358,371,358,370,369,349,349,347,649,552,545,559,551,544,550,517,556,528,589,595,818,781,1369,981,1201,760,751,753,753,740,753,739,714,710,3398,2558]} 1. d4 {[%emt 0:00:05]} d6 {[%emt 0:00:05]} 2. Nf3 {[%emt 0:00:14]} g6 {[%emt 0:00:16]} 3. c4 {[%emt 0:00:15]} Bg7 {[%emt 0:00:06]} 4. g3 {[%emt 0:00:29]} Nf6 {[%emt 0:00:53]} 5. Bg2 {[%emt 0:00:06]} O-O {[%emt 0:00:05]} 6. O-O {[%emt 0:00:05]} Nc6 {[%emt 0:01:46]} 7. d5 {[%emt 0:00:07]} Na5 {[%emt 0:00:15]} 8. Na3 {[%emt 0:00:03]} c5 {[%emt 0:01:03]} 9. Re1 {[%emt 0:00:06] E60: King's Indian: Unusual lines and Fianchetto Variation without Nc3.} a6 {[%emt 0:04:32]} (9... e6 $11) 10. e4 $14 {[%emt 0:00:07]} Nd7 {[%emt 0:02:20]} 11. Rb1 {[%emt 0:04:26] White is slightly better.} b5 {[%emt 0:06:57]} 12. cxb5 $16 {[%emt 0:08:58]} axb5 $146 {[%emt 0:01:26]} (12... Qb6 13. Bf1 axb5 14. Nxb5 Ba6 15. a4 c4 16. Be3 Qb7 17. Bd4 Ne5 18. Bxe5 dxe5 {1-0 Rogozenco,D (2421)-Secheres,A (2381) ROM-chT Eforie Nord 2023 (4.4)}) 13. Nxb5 {[%emt 0:02:34]} Nc4 {[%emt 0:04:45][%cal Od8a5]} 14. b3 {[%emt 0:03:54]} Nce5 {[%emt 0:00:08]} 15. a4 {[%emt 0:04:46] White is more active.} Nxf3+ {[%emt 0:07:15]} 16. Bxf3 {[%emt 0:01:27]} f5 {[%emt 0:00:22]} 17. exf5 {[%emt 0:11:00]} Ne5 {[%emt 0:00:20]} 18. Be4 {[%emt 0:00:18]} Bxf5 {[%emt 0:22:31]} 19. Bxf5 {[%emt 0:03:26]} Rxf5 {[%emt 0:00:27]} 20. f4 {[%emt 0:02:21]} Nd7 {[%emt 0:01:14][%cal Be5d7,Bd7f6,Bf6e8][%mdl 32]} 21. Bb2 {[%emt 0:01:27]} Nf6 {[%emt 0:02:21]} 22. Qe2 {[%emt 0:03:08]} Qd7 {[%emt 0:03:32] [#]} (22... Kf8 $16 {is a better defense.} 23. Qf3 (23. Bxf6 Bxf6 24. Qc4 Kg8 $18) 23... Nh5) 23. Qxe7 $18 {[%emt 0:05:11]} Bf8 {[%emt 0:03:13]} 24. Qe6+ {[%emt 0:02:08]} Qxe6 {[%emt 0:00:31]} 25. dxe6 {[%emt 0:00:06][%cal Bd5e6,Be6e7][%mdl 32]} ({Much less strong is} 25. Rxe6 Nxd5 26. Nxd6 Nc7 $18) 25... Ne8 {[%emt 0:00:43]} 26. e7 {[%emt 0:09:18]} Bg7 {[%emt 0:03:40]} 27. Bxg7 {[%emt 0:00:44]} Kxg7 {[%emt 0:00:02]} 28. Rbd1 {[%emt 0:00:39]} d5 {[%emt 0:00:15]} (28... Ra6 29. Nc3 Rb6) 29. Re5 {[%emt 0:03:27] White is clearly winning.} d4 {[%emt 0:00:18]} 30. Rxf5 {[%emt 0:00:55]} gxf5 {[%emt 0:00:01][%mdl 4096] Endgame KRN-KRN. White is two pawns up.} 31. Rc1 {[%emt 0:00:23]} Rc8 {[%emt 0:00:03]} 32. Nxd4 {[%emt 0:00:29]} Kf6 {[%emt 0:00:03]} 33. b4 {[%emt 0:01:00][%cal Bb3b4,Bb4b5][%mdl 32]} c4 {[%emt 0:00:07]} 34. b5 {[%emt 0:00:54]} Nd6 {[%emt 0:00:08]} 35. Nc6 {[%emt 0:02:02]} Ra8 {[%emt 0:00:19]} 36. Rd1 {[%emt 0:01:16]} Ke6 {[%emt 0:00:12]} 37. a5 {[%emt 0:00:16]} Kd7 {[%emt 0:00:40]} 38. a6 {[%emt 0:03:08][%cal Ob5b6] [#]} c3 {[%emt 0:00:10]} 39. Rd3 {[%emt 0:02:51][%cal Ob5b6] b6! is the strong threat.} c2 {[%emt 0:00:07]} 40. Rc3 {[%emt 0:00:09]} Nxb5 {[%emt 0:00:17]} 41. Rxc2 {[%emt 0:00:10]} Nc7 {[%emt 0:00:12]} 42. Ne5+ {[%emt 0:01:09] Black did not feel at home in the position after the opening.   Weighted Error Value: White=0.09 (flawless) /Black=0.65  Mistake:       	---       	Black=4      Inaccurate:     	---       	Black=2      OK:         	White=15    	Black=8      Best:        	White=2     	---} 1-0

[Event "8th Montevideo Open 2025"]
[Site "Montevideo"]
[Date "2025.02.08"]
[Round "8.4"]
[White "Roselli Mailhe, Bernardo"]
[Black "Villca, Julian"]
[Result "1/2-1/2"]
[Annotator "TA"]
[ECO "D58"]
[WhiteElo "2342"]
[BlackElo "2413"]
[PlyCount "117"]
[EventDate "2025.02.01"]
[EventType "swiss"]
[EventCountry "URU"]
[SourceTitle "playchess.com"]
[Source "ChessBase"]
[SourceQuality "1"]
[TimeControl "5400+30"]

{[%evp 13,117,9,12,-16,-15,-14,-31,-22,-22,-15,35,28,35,0,0,0,0,4,24,11,29,0,0,0,0,0,81,66,65,68,46,55,81,37,30,39,129,119,116,91,93,19,166,70,74,74,65,62,59,61,58,61,60,55,58,52,52,52,52,54,68,55,56,29,18,18,28,19,87,0,87,16,16,9,23,16,80,80,80,80,95,80,80,0,0,0,0,0,0,0,0,0,0,0,0,0,0,0,0,0,0,0,0,0,0,0]} 1. d4 {[%emt 0:00:03]} d5 {[%emt 0:02:12]} 2. c4 {[%emt 0:00:06]} e6 {[%emt 0:00:03]} 3. Nc3 {[%emt 0:00:05]} Nf6 {[%emt 0:00:05]} 4. Bg5 {[%emt 0:00:06]} Be7 {[%emt 0:00:03]} 5. e3 {[%emt 0:00:10]} h6 {[%emt 0:00:05]} 6. Bh4 {[%emt 0:00:05]} O-O {[%emt 1:31:02]} 7. Nf3 b6 8. g4 {D58: Queen's Gambit Declined: Tartakower Defence.} Ne4 {[%emt 0:00:00]} 9. Bxe7 {[%emt 0:01:17]} Qxe7 {[%emt 0:00:00]} 10. h4 {[%emt 0:00:30] Black is slightly better.} Bb7 {[%emt 0:00:00]} 11. g5 {[%emt 0:00:30]} h5 $146 {[%emt 0:00:00]} (11... hxg5 12. Nxg5 Nxg5 (12... Nxc3 13. Qh5) 13. hxg5 Qxg5 14. Bd3 $16) (11... dxc4 $11 12. gxh6 Nxc3 13. bxc3 gxh6) (11... Nd7 12. gxh6 gxh6 13. Nxe4 dxe4 14. Nd2 c5 15. Nxe4 Bxe4 16. Qg4+ Bg6 17. h5 Nf6 {0-1 Barrientos Chavarriaga,S (2441)-Blanco Amaro,G (1971) Carlos Torre Memorial op 33rd 2023 (2)}) 12. Nxe4 $14 {[%emt 0:16:33]} dxe4 {[%emt 0:00:00]} 13. Nd2 {[%emt 0:00:09]} c5 {[%emt 0:00:00]} 14. dxc5 {[%emt 0:04:57]} Nd7 {[%emt 0:00:00][%cal Bb8d7,Bd7e5,Be5g6][%mdl 32] Black sacrificed a pawn} 15. Qxh5 {[%emt 0:07:11]} Qxc5 {[%emt 0:00:00]} 16. O-O-O {[%emt 0:07:34]} Ne5 {[%emt 0:00:00]} 17. Kb1 {[%emt 0:03:43]} Rad8 {[%emt 0:00:00]} 18. Nb3 {[%emt 0:22:39][%cal Bd2b3,Bb3d4,Bd4f5,Bf5e7][%mdl 32]} Qb4 {[%emt 0:00:00]} 19. Be2 {[%emt 0:07:48]} a5 {[%emt 0:00:00] [#]} (19... Nxc4 $11 20. Rxd8 Rxd8) 20. g6 $1 $16 {[%emt 0:04:27]} Nxg6 {[%emt 0:00:00]} 21. Nd4 {[%emt 0:00:08][%cal Od4e6]} Qe7 {[%emt 0:00:00]} 22. Rdg1 {[%emt 0:04:33]} Qf6 {[%emt 0:00:00]} 23. Qg5 {[%emt 0:00:10]} (23. Rh2 {seems wilder.} Rd6 24. Rhg2 Rxd4 25. exd4 e3 26. f3) 23... Qxg5 {[%emt 0:00:00]} 24. Rxg5 {[%emt 0:00:07]} e5 {[%emt 0:01:26]} ({Black should try} 24... Nf4 $1 $14) 25. Nf5 {[%emt 0:02:20]} Rd2 {[%emt 0:01:48]} 26. Re1 {[%emt 0:01:50] and h5 should not be overlooked} Bc8 {[%emt 0:00:35]} 27. Kc1 {[%emt 0:00:03]} (27. Ng3 $1 $16) 27... Rfd8 {[%emt 0:02:32] [#] Repels c5} (27... Rxe2 $1 $11 {and Black is okay.} 28. Rxe2 Bxf5 29. Rxf5 f6) 28. Rxg6 {[%emt 0:00:51]} fxg6 $14 {[%emt 0:00:53]} (28... Bxf5 $2 29. Rxb6 Be6 30. Rc6 $18) 29. Ne7+ {[%emt 0:00:04]} Kf7 {[%emt 0:00:05]} 30. Nxc8 {[%emt 0:01:20]} Rxe2 {[%emt 0:00:02]} 31. Nd6+ Rxd6 {[%emt 0:00:16]} 32. Rxe2 {[%emt 0:02:39][%mdl 4096] Endgame KR-KR} Kf6 {[%emt 0:02:43]} 33. Rd2 {[%emt 0:02:08]} Rc6 {[%emt 0:01:21]} 34. b3 {[%emt 0:00:06]} g5 {[%emt 0:00:32]} 35. hxg5+ {[%emt 0:01:22]} Kxg5 {[%emt 0:00:02]} 36. Kd1 {[%emt 0:00:20]} Rh6 {[%emt 0:01:16]} 37. Ke2 {[%emt 0:00:38]} Kf5 {[%emt 0:00:08]} 38. Rd7 {[%emt 0:01:19]} g5 {[%emt 0:00:22]} 39. Rf7+ {[%emt 0:01:28]} Kg4 {[%emt 0:00:07]} 40. Rb7 {[%emt 0:01:22]} Rc6 {[%emt 0:00:22]} (40... a4 $1 $11) 41. Rf7 {[%emt 0:00:47]} ({Better is} 41. Ra7 $16) 41... Rd6 {[%emt 0:01:06] [#]} (41... Rh6 $11 {keeps the balance.}) 42. Rc7 {[%emt 0:01:29]} (42. Ra7 $1 $16) 42... a4 $1 $11 {[%emt 0:00:57]} 43. Rb7 {[%emt 0:02:06]} axb3 {[%emt 0:00:31]} 44. axb3 {[%emt 0:00:01]} Kf5 {[%emt 0:01:03]} (44... Kh3 $11) 45. Kf1 $16 {[%emt 0:02:10]} Kg4 {[%emt 0:00:16]} 46. Kg2 {[%emt 0:06:16]} Rc6 47. Rb8 {[%emt 0:00:00] White is more active.} Rd6 {[%emt 0:00:17] [#]} 48. b4 {[%emt 0:00:00]} (48. Re8 $1 $16 {[%cal Re8e5]} Rd3 49. Rxe5 Rxb3 50. Rxe4+ Kf5 51. Re8) 48... Rc6 $11 {[%emt 0:00:59] The position is equal.} 49. b5 {[%emt 0:00:00]} Rxc4 {[%emt 0:00:37]} 50. Rxb6 {[%emt 0:00:00]} Rb4 {[%emt 0:00:28]} 51. Rb8 {[%emt 0:00:00]} Rb2 {[%emt 0:00:34]} 52. b6 {[%emt 0:00:00]} Rb3 {[%emt 0:00:04]} 53. Kf1 {[%emt 0:00:59]} Rb1+ {[%emt 0:00:36]} 54. Ke2 {[%emt 0:00:01]} Rb2+ {[%emt 0:00:06]} 55. Ke1 {[%emt 0:00:14]} Rb1+ {[%emt 0:00:27]} 56. Kd2 {[%emt 0:00:06]} Rb2+ {[%emt 0:01:13]} 57. Kc3 {[%emt 0:00:03]} Rxf2 {[%emt 0:00:06]} 58. Re8 {[%emt 0:02:19][%cal Ob6b7] White wants to mate with b7!.} (58. Rg8 $5 Rf7 $8 59. Kc4 $11) 58... Rf7 {[%emt 0:00:38] Threatens to win with ...Kf3.} 59. Rxe5 {[%emt 0:00:09] Weighted Error Value: White=0.16 (very precise) /Black=0.16 (very precise)   Mistake:       	White=5     	Black=7      Inaccurate:     	White=4     	Black=1      OK:         	White=17    	Black=26     Best:        	White=5     	Black=5      Strong:       	---       	Black=1} 1/2-1/2

[Event "8th Montevideo Open 2025"]
[Site "Montevideo"]
[Date "2025.02.08"]
[Round "8.5"]
[White "De Lima, Adriano Gaspar"]
[Black "Hoffman, Alejandro"]
[Result "0-1"]
[Annotator "TA"]
[ECO "A57"]
[WhiteElo "2073"]
[BlackElo "2368"]
[PlyCount "64"]
[EventDate "2025.02.01"]
[EventType "swiss"]
[EventCountry "URU"]
[SourceTitle "playchess.com"]
[Source "ChessBase"]
[SourceQuality "1"]
[TimeControl "5400+30"]

{[%evp 9,64,23,55,58,54,0,0,9,0,0,29,30,55,39,46,46,41,57,52,52,64,26,56,97,79,-131,-129,-137,-135,-117,-120,-168,-144,-256,-259,-308,-293,-297,-174,-224,-242,-339,-336,-349,-334,-416,-406,-387,-379,-400,-368,-1086,-973,-29990,-29991,-29991,-29992]} 1. d4 {[%emt 0:02:12]} Nf6 {[%emt 0:00:24]} 2. c4 {[%emt 0:01:41]} c5 {[%emt 0:00:24]} 3. d5 {[%emt 0:01:24]} b5 {[%emt 0:02:55]} 4. Qc2 {[%emt 0:01:41]} bxc4 {[%emt 0:03:06]} 5. e4 {[%emt 0:00:26]} d6 {[%emt 0:00:12]} 6. Bxc4 {[%emt 0:01:47] A57: Benko/Volga Gambit.} g6 {[%emt 0:00:24]} 7. f4 {[%emt 0:01:45]} Bg7 {[%emt 0:01:40]} 8. Nf3 {[%emt 0:01:43] The position is equal.} O-O {[%emt 0:01:21]} 9. O-O {[%emt 0:01:14]} Ba6 {[%emt 0:02:28]} 10. Na3 {[%emt 0:01:04]} Nfd7 {[%emt 0:02:01]} 11. Bd2 {[%emt 0:02:41]} Nb6 {[%emt 0:03:27]} 12. Bxa6 {[%emt 0:00:44]} Nxa6 {[%emt 0:00:11]} 13. Bc3 $1 {[%emt 0:00:51]} Nb4 {[%emt 0:04:50]} 14. Qd2 {[%emt 0:06:04]} Bh6 $146 {[%emt 0:05:12]} (14... a5 15. Bxg7 Kxg7 {½-½ Kostic,V (2436)-Nestorovic,N (2410) Stara Pazova op 2009 (10)}) 15. g4 {[%emt 0:05:04][%cal Bg2g4,Bg4g5][%mdl 32]} e6 {[%emt 0:03:11][%cal Re6d5]} 16. g5 {[%emt 0:06:59]} Bg7 {[%emt 0:00:10][%cal Re6d5]} 17. f5 $2 {[%emt 0:03:38] [#]} (17. dxe6 $16 {Strongly threatening f5.} fxe6 18. Bxg7 Kxg7 19. Nb5) 17... exf5 $17 {[%emt 0:02:48] White is on the road to losing.} (17... gxf5 18. Bxg7 Kxg7 19. exf5 N4xd5 (19... N6xd5 20. Nc4 $14) 20. Rae1 $11) 18. exf5 {[%emt 0:00:43]} Bxc3 {[%emt 0:00:51]} ({Don't do} 18... N4xd5 19. f6 Bh8 20. Nc2 $17) (18... gxf5 19. Bxg7 Kxg7 20. Nh4 $16) (18... N6xd5 19. Rad1 $11) 19. bxc3 {[%emt 0:00:11]} N4xd5 {[%emt 0:00:24][%csl Oa2,Oc3] White has weak pawns} 20. f6 {[%emt 0:08:20]} (20. Rae1 $17) 20... Re8 {[%emt 0:03:04]} 21. Rae1 {[%emt 0:09:19]} (21. c4 $17 Ne3 22. Rfe1 Nexc4 (22... Nbxc4 23. Nxc4 Nxc4 24. Qc2 $17) 23. Nxc4 Nxc4 24. Qd3) 21... Qd7 $19 {[%emt 0:01:44]} 22. Rxe8+ {[%emt 0:09:54]} Rxe8 {[%emt 0:00:08]} 23. Re1 {[%emt 0:01:03]} h5 {[%emt 0:05:53]} (23... Qg4+ 24. Kf2 Rd8 (24... Rxe1 25. Qxe1 Qa4 26. c4 $17) 25. h3 Qxh3 26. Nc4 Nxf6 (26... Nxc4 27. Qxd5 Nb6 28. Qxd6 $14) 27. gxf6 Nxc4 28. Qd5 $15) (23... Rxe1+ $142 24. Qxe1 Qg4+ 25. Kf2 Nd7 26. Qe8+ Nf8) 24. Rxe8+ {[%emt 0:08:20]} (24. Kf2 {keeps fighting.}) 24... Qxe8 {[%emt 0:00:10]} 25. Kf2 {[%emt 0:01:39]} (25. c4 $142 Qe4 26. Qe1 Qxe1+ (26... Qxf3 27. Qe8+ Kh7 28. Qxf7+ Kh8 29. Qg7#) (26... Ne3 $2 27. Kf2 $19) 27. Nxe1) 25... Qe4 {[%emt 0:06:18]} 26. h4 {[%emt 0:04:25]} a6 {[%emt 0:04:00]} 27. c4 {[%emt 0:03:20]} Nxc4 {[%emt 0:01:24]} 28. Nxc4 {[%emt 0:00:08]} Qxc4 {[%emt 0:00:06]} 29. Qa5 {[%emt 0:00:06] [#] Qd8+ would kill now.} Qc2+ {[%emt 0:00:46]} 30. Kg3 $2 {[%emt 0:00:21]} (30. Qd2 Qe4 31. Qe2 Qxe2+ 32. Kxe2) 30... Ne3 {[%emt 0:00:30]} 31. Qxa6 {[%emt 0:00:30]} Nf5+ {[%emt 0:00:30]} 32. Kf4 {[%emt 0:00:30]} Qc1+ {[%emt 0:01:48] Weighted Error Value: White=0.76/Black=0.14 (very precise)   Mistake:       	White=6     	Black=1      Inaccurate:     	White=3     	Black=2      OK:         	White=7     	Black=11     Best:        	White=1     	Black=2      Strong:       	White=1     	---} 0-1

[Event "8th Montevideo Open 2025"]
[Site "Montevideo"]
[Date "2025.02.08"]
[Round "8.6"]
[White "Mussanti, Diego"]
[Black "De Dovitiis, Alejo"]
[Result "1-0"]
[Annotator "RC"]
[ECO "C12"]
[WhiteElo "2173"]
[BlackElo "2225"]
[PlyCount "77"]
[EventDate "2025.02.01"]
[EventType "swiss"]
[EventCountry "URU"]
[SourceTitle "playchess.com"]
[Source "ChessBase"]
[SourceQuality "1"]
[TimeControl "5400+30"]

1. e4 {[%emt 0:03:22]} e6 {[%emt 0:00:14]} 2. d4 {[%emt 0:01:01]} d5 {[%emt 0:00:14]} 3. Nc3 {[%emt 0:00:22]} Nf6 {[%emt 0:01:09]} 4. Bg5 {[%emt 0:00:31]} Bb4 {[%emt 0:01:23]} 5. e5 {[%emt 0:02:21]} h6 {[%emt 0:00:22]} 6. Bd2 {[%emt 0:00:52]} Bxc3 {[%emt 0:00:52]} 7. bxc3 {[%emt 0:00:15]} Ne4 {[%emt 0:00:27]} 8. Qg4 {[%emt 0:00:19]} g6 {[%emt 0:00:27]} 9. Bd3 {[%emt 0:00:15]} Nxd2 {[%emt 0:00:21]} 10. Kxd2 {[%emt 0:00:07]} c5 {[%emt 0:01:19]} 11. Nf3 {[%emt 0:01:19]} Nc6 {[%emt 0:01:24]} 12. h4 {[%emt 0:02:00]} c4 {[%emt 0:00:36]} 13. Be2 {[%emt 0:00:55]} Qe7 {[%emt 0:00:42]} 14. Qf4 {[%emt 0:01:17]} b5 {[%emt 0:08:28]} 15. h5 {[%emt 0:09:49]} g5 {[%emt 0:03:11]} 16. Qf6 {[%emt 0:06:08]} Rh7 {[%emt 0:06:39]} 17. Rhb1 {[%emt 0:19:03]} Bd7 {[%emt 0:05:40]} 18. Nh2 {[%emt 0:09:31]} b4 {[%emt 0:37:12]} 19. Qxe7+ {[%emt 0:11:01]} Kxe7 {[%emt 0:00:06]} 20. Ng4 {[%emt 0:00:08]} f5 {[%emt 0:06:22]} 21. exf6+ {[%emt 0:00:47]} Kd6 {[%emt 0:00:06]} 22. Bf3 {[%emt 0:02:41]} Rf8 {[%emt 0:01:40]} 23. Re1 {[%emt 0:15:33]} Be8 {[%emt 0:05:46]} 24. Rh1 {[%emt 0:00:32]} a5 {[%emt 0:04:34]} 25. Rae1 {[%emt 0:01:04]} bxc3+ {[%emt 0:02:03]} 26. Kxc3 {[%emt 0:00:12]} Na7 {[%emt 0:00:14]} 27. Kd2 {[%emt 0:04:28]} Nb5 {[%emt 0:01:44]} 28. c3 {[%emt 0:00:16]} Na3 {[%emt 0:03:04]} 29. Re2 {[%emt 0:01:28]} Rb7 {[%emt 0:04:14]} 30. Nxh6 {[%emt 0:03:26]} Rb2+ {[%emt 0:00:23]} 31. Ke3 {[%emt 0:01:22]} Nc2+ {[%emt 0:00:07]} 32. Rxc2 Rxc2 {[%emt 0:00:05]} 33. Ng4 {[%emt 0:00:24]} Rxc3+ {[%emt 0:02:37]} 34. Ke2 {[%emt 0:00:44]} Rc2+ {[%emt 0:00:53]} 35. Ke3 {[%emt 0:04:27]} Rc3+ {[%emt 0:01:15]} 36. Ke2 {[%emt 0:00:00]} Bf7 {[%emt 0:01:08]} 37. Ne5 {[%emt 0:00:00]} Bg8 {[%emt 0:00:13]} 38. Rb1 {[%emt 0:00:00]} Rxf6 {[%emt 0:00:25]} 39. Rb7 {[%emt 0:00:00]} 1-0